[Event "EYTCC Open U18 2022"]
[Site "Thessaloniki"]
[Date "2022.07.15"]
[Round "4.1"]
[White "Milikow, Yoav"]
[Black "Budisavljevic, Luka"]
[Result "1/2-1/2"]
[ECO "D35"]
[WhiteElo "2452"]
[BlackElo "2511"]
[Annotator "ChessBase"]
[PlyCount "144"]
[EventDate "2022.07.12"]
[EventType "team-tourn"]
[EventCountry "GRE"]
[SourceTitle "playchess.com"]
[Source "ChessBase"]
[SourceQuality "1"]
[WhiteTeam "Israel"]
[BlackTeam "Serbia"]
[WhiteTeamCountry "ISR"]
[BlackTeamCountry "SRB"]
[TimeControl "40/5400+30:1800+30"]

1. d4 {[%emt 0:00:03]} Nf6 {[%emt 0:00:05]} 2. c4 {[%emt 0:00:04]} e6 {[%emt 0:00:07]} 3. Nc3 {[%emt 0:00:05]} d5 {[%emt 0:00:08]} 4. cxd5 {[%emt 0:00:23]} exd5 {[%emt 0:00:07]} 5. Bg5 {[%emt 0:00:05]} Be6 {[%emt 0:00:09]} 6. e3 {[%emt 0:00:08]} Nbd7 {[%emt 0:00:19]} 7. Bd3 {[%emt 0:00:09]} c6 {[%emt 0:00:24]} 8. f4 {[%emt 0:01:58]} h6 {[%emt 0:00:51]} 9. Bh4 {[%emt 0:00:06]} g5 {[%emt 0:00:09]} 10. fxg5 {[%emt 0:00:12]} Ne4 {[%emt 0:00:13]} 11. Nge2 {[%emt 0:02:04]} hxg5 {[%emt 0:03:18]} 12. Bg3 {[%emt 0:00:35]} Nxg3 {[%emt 0:07:25]} 13. Nxg3 {[%emt 0:00:03]} Qc7 {[%emt 0:01:18]} 14. Qf3 {[%emt 0:01:22]} Rh4 {[%emt 0:10:02]} 15. Nf5 {[%emt 0:06:54]} Rxh2 {[%emt 0:02:47]} 16. O-O-O {[%emt 0:00:14]} O-O-O {[%emt 0:02:00]} 17. Rxh2 {[%emt 0:03:32]} Qxh2 {[%emt 0:00:06]} 18. g3 {[%emt 0:00:32]} Bxf5 {[%emt 0:12:46]} 19. Bxf5 {[%emt 0:00:15]} Bd6 {[%emt 0:01:49]} 20. Ne2 {[%emt 0:07:30]} Qh8 {[%emt 0:00:54]} 21. Rh1 {[%emt 0:01:38]} Qe8 {[%emt 0:07:37]} 22. Rh7 {[%emt 0:03:42]} Kb8 {[%emt 0:11:14]} 23. Bg4 {[%emt 0:03:35]} Nb6 {[%emt 0:00:41]} 24. b3 c5 {[%emt 0:06:52]} 25. Qxf7 {[%emt 0:10:46]} Qc6 {[%emt 0:03:31]} 26. Qf6 {[%emt 0:03:40]} Qe8 {[%emt 0:14:10]} 27. Kd1 {[%emt 0:01:39]} c4 {[%emt 0:06:11]} 28. Qg7 {[%emt 0:01:49]} Qc6 {[%emt 0:00:21]} 29. Qf6 {[%emt 0:00:51]} Bc7 {[%emt 0:01:50]} 30. Qxc6 {[%emt 0:01:19]} bxc6 {[%emt 0:00:03]} 31. Rg7 {[%emt 0:00:56]} Re8 {[%emt 0:01:56]} 32. Kd2 {[%emt 0:01:03]} Bd6 {[%emt 0:00:37]} 33. Rxg5 {[%emt 0:04:42]} Bb4+ {[%emt 0:00:01]} 34. Kc2 {[%emt 0:00:55]} Rxe3 {[%emt 0:00:03]} 35. Rg8+ {[%emt 0:02:00]} Kb7 {[%emt 0:02:01]} 36. Rg7+ {[%emt 0:00:16]} Ka6 {[%emt 0:00:00]} 37. Rc7 {[%emt 0:01:46]} Re4 {[%emt 0:02:19]} 38. Bh5 {[%emt 0:03:39]} Re6 {[%emt 0:00:40]} 39. Nf4 {[%emt 0:05:29]} Re4 {[%emt 0:01:48]} 40. Ne2 {[%emt 0:00:00]} Re6 {[%emt 0:00:00]} 41. Bg4 {[%emt 0:11:53]} Rh6 {[%emt 0:03:14]} 42. Bf3 {[%emt 0:01:03]} Rf6 {[%emt 0:05:40]} 43. Bh5 {[%emt 0:05:48]} Bd6 {[%emt 0:01:58]} 44. Rxc6 {[%emt 0:07:50]} Kb7 {[%emt 0:01:28]} 45. Be8 {[%emt 0:02:53]} Rf2 {[%emt 0:01:33]} 46. Kd2 {[%emt 0:01:59]} Bxg3 {[%emt 0:01:45]} 47. Re6 {[%emt 0:00:35]} Bh4 {[%emt 0:00:27]} 48. Bc6+ {[%emt 0:01:03]} Kc7 {[%emt 0:00:29]} 49. Bb5 {[%emt 0:00:16]} Bg5+ {[%emt 0:01:33]} 50. Kc2 {[%emt 0:01:13]} Bf6 {[%emt 0:00:57]} 51. Kd2 {[%emt 0:01:06]} Rf1 {[%emt 0:07:04]} 52. Kc2 {[%emt 0:01:21]} Bg5 {[%emt 0:01:24]} 53. Re5 {[%emt 0:02:10]} Bf6 {[%emt 0:00:19]} 54. Re6 {[%emt 0:00:03]} Rf2 {[%emt 0:00:35]} 55. Kd2 {[%emt 0:00:08]} Rf3 {[%emt 0:00:59]} 56. Kc2 {[%emt 0:01:05]} Rf1 {[%emt 0:02:45]} 57. Kd2 {[%emt 0:02:12]} Bg5+ {[%emt 0:01:32]} 58. Kc2 {[%emt 0:00:12]} Rf2 {[%emt 0:00:46]} 59. Kd1 {[%emt 0:00:27]} Rf1+ {[%emt 0:01:14]} 60. Kc2 {[%emt 0:00:02]} Rf2 {[%emt 0:00:03]} 61. Kd1 {[%emt 0:00:10]} Rf1+ {[%emt 0:00:58]} 62. Kc2 {[%emt 0:00:02]} Ra1 {[%emt 0:00:36]} 63. Nc3 {[%emt 0:02:55]} Rc1+ {[%emt 0:00:36]} 64. Kb2 {[%emt 0:00:01]} Bd2 {[%emt 0:00:50]} 65. Rc6+ {[%emt 0:00:02]} Kb7 {[%emt 0:00:09]} 66. Nb1 {[%emt 0:00:43]} Be3 {[%emt 0:00:30]} 67. Re6 {[%emt 0:01:45]} Re1 {[%emt 0:00:02]} 68. Re7+ {[%emt 0:01:10]} Kb8 {[%emt 0:01:27]} 69. Kc2 {[%emt 0:02:04]} Rc1+ {[%emt 0:00:26]} 70. Kb2 {[%emt 0:00:01]} Re1 {[%emt 0:00:16]} 71. Kc2 {[%emt 0:00:10]} Rc1+ {[%emt 0:01:17]} 72. Kb2 {[%emt 0:00:02]} Re1 1/2-1/2

[Event "EYTCC Open U18 2022"]
[Site "Thessaloniki"]
[Date "2022.07.15"]
[Round "4.2"]
[White "Tadic, Stefan"]
[Black "Ben Ari, Yannay"]
[Result "0-1"]
[ECO "B51"]
[WhiteElo "2356"]
[BlackElo "2411"]
[Annotator "ChessBase"]
[PlyCount "82"]
[EventDate "2022.07.12"]
[EventType "team-tourn"]
[EventCountry "GRE"]
[SourceTitle "playchess.com"]
[Source "ChessBase"]
[SourceQuality "1"]
[WhiteTeam "Serbia"]
[BlackTeam "Israel"]
[WhiteTeamCountry "SRB"]
[BlackTeamCountry "ISR"]
[TimeControl "40/5400+30:1800+30"]

1. e4 {[%emt 0:00:39]} c5 {[%emt 0:00:09]} 2. Nf3 {[%emt 0:01:15]} d6 {[%emt 0:00:17]} 3. Bb5+ {[%emt 0:00:04]} Nd7 {[%emt 0:00:36]} 4. c3 {[%emt 0:00:32]} Ngf6 {[%emt 0:00:33]} 5. Qe2 {[%emt 0:00:06]} a6 {[%emt 0:00:41]} 6. Ba4 {[%emt 0:03:24]} b5 {[%emt 0:01:08]} 7. Bc2 {[%emt 0:00:07]} Bb7 {[%emt 0:00:28]} 8. d4 {[%emt 0:04:13]} g6 {[%emt 0:02:29]} 9. O-O {[%emt 0:21:55]} Bg7 {[%emt 0:02:03]} 10. Rd1 {[%emt 0:03:24]} O-O {[%emt 0:31:40]} 11. e5 {[%emt 0:16:48]} Bxf3 {[%emt 0:02:46]} 12. Qxf3 {[%emt 0:10:41]} dxe5 {[%emt 0:00:27]} 13. dxc5 {[%emt 0:00:45]} e4 {[%emt 0:08:44]} 14. Qh3 {[%emt 0:06:15]} Qc7 {[%emt 0:02:20]} 15. b4 {[%emt 0:00:09]} Rad8 {[%emt 0:06:12]} 16. a4 {[%emt 0:08:32]} bxa4 {[%emt 0:10:09]} 17. Rxa4 {[%emt 0:07:49]} Qc6 {[%emt 0:05:50]} 18. c4 {[%emt 0:07:23]} Ne5 {[%emt 0:02:59]} 19. Rxd8 {[%emt 0:01:05]} Rxd8 {[%emt 0:00:03]} 20. Qe3 {[%emt 0:03:55]} Nd3 {[%emt 0:02:50]} 21. h3 {[%emt 0:00:37]} Nh5 {[%emt 0:03:42]} 22. b5 {[%emt 0:00:06]} axb5 {[%emt 0:05:18]} 23. cxb5 {[%emt 0:00:00]} Qxb5 {[%emt 0:00:27]} 24. Rxe4 {[%emt 0:00:18]} Nxc1 {[%emt 0:00:48]} 25. Qxc1 {[%emt 0:01:11]} Qxc5 {[%emt 0:00:30]} 26. Re2 {[%emt 0:00:35]} Rc8 {[%emt 0:05:05]} 27. Qe3 {[%emt 0:00:50]} Qxe3 {[%emt 0:02:19]} 28. fxe3 {[%emt 0:00:01]} Ng3 {[%emt 0:01:56]} 29. Rd2 {[%emt 0:00:00]} Bb2 {[%emt 0:00:52]} 30. Bb3 {[%emt 0:02:13]} Be5 {[%emt 0:01:34]} 31. Rc2 {[%emt 0:00:33]} Rb8 {[%emt 0:00:20]} 32. Nd2 {[%emt 0:00:01]} Rd8 {[%emt 0:00:41]} 33. Kf2 {[%emt 0:00:49]} Kg7 {[%emt 0:00:22]} 34. Nf1 {[%emt 0:00:42]} Ne4+ {[%emt 0:00:18]} 35. Ke2 {[%emt 0:00:17]} f5 {[%emt 0:00:49]} 36. Nd2 {[%emt 0:00:09]} Rb8 {[%emt 0:00:32]} 37. Bc4 {[%emt 0:00:46]} Nc3+ {[%emt 0:00:05]} 38. Kf3 {[%emt 0:00:24]} Rd8 {[%emt 0:00:41]} 39. g4 {[%emt 0:00:44]} fxg4+ {[%emt 0:00:03]} 40. hxg4 {[%emt 0:00:00]} Rf8+ {[%emt 0:00:00]} 41. Kg2 {[%emt 0:01:27]} Nd1 {[%emt 0:01:09]} 0-1

[Event "EYTCC Open U18 2022"]
[Site "Thessaloniki"]
[Date "2022.07.15"]
[Round "4.3"]
[White "Milikow, Elie"]
[Black "Ivanovic, Marko"]
[Result "1-0"]
[ECO "C82"]
[WhiteElo "2433"]
[BlackElo "2310"]
[Annotator "ChessBase"]
[PlyCount "69"]
[EventDate "2022.07.12"]
[EventType "team-tourn"]
[EventCountry "GRE"]
[SourceTitle "playchess.com"]
[Source "ChessBase"]
[SourceQuality "1"]
[WhiteTeam "Israel"]
[BlackTeam "Serbia"]
[WhiteTeamCountry "ISR"]
[BlackTeamCountry "SRB"]
[TimeControl "40/5400+30:1800+30"]

1. e4 {[%emt 0:00:04]} e5 {[%emt 0:00:24]} 2. Nf3 {[%emt 0:00:08]} Nc6 {[%emt 0:00:06]} 3. Bb5 {[%emt 0:00:13]} a6 {[%emt 0:00:06]} 4. Ba4 {[%emt 0:00:14]} Nf6 {[%emt 0:00:36]} 5. O-O {[%emt 0:00:34]} Nxe4 {[%emt 0:00:10]} 6. d4 {[%emt 0:00:57]} b5 {[%emt 0:00:06]} 7. Bb3 {[%emt 0:00:12]} d5 {[%emt 0:00:04]} 8. dxe5 {[%emt 0:00:31]} Be6 {[%emt 0:00:05]} 9. c3 {[%emt 0:00:59]} Bc5 {[%emt 0:00:08]} 10. Nbd2 {[%emt 0:00:40]} O-O {[%emt 0:00:07]} 11. Bc2 {[%emt 0:00:20]} Nxf2 {[%emt 0:00:05]} 12. Rxf2 {[%emt 0:00:14]} f6 {[%emt 0:00:02]} 13. Nf1 {[%emt 0:00:19]} Bxf2+ {[%emt 0:00:05]} 14. Kxf2 {[%emt 0:00:08]} fxe5 {[%emt 0:01:00]} 15. Kg1 {[%emt 0:00:10]} Qd6 {[%emt 0:28:29]} 16. Be3 {[%emt 0:01:25]} Rad8 {[%emt 0:04:08]} 17. Qe1 {[%emt 0:22:56]} h6 {[%emt 0:45:45]} 18. Rd1 {[%emt 0:03:23]} Qe7 {[%emt 0:02:50]} 19. Qg3 {[%emt 0:12:56]} Qf6 {[%emt 0:00:29]} 20. Bc5 {[%emt 0:00:45]} Rf7 {[%emt 0:00:26]} 21. Ne3 {[%emt 0:02:45]} e4 {[%emt 0:09:53]} 22. Nd4 {[%emt 0:01:48]} Nxd4 {[%emt 0:00:07]} 23. cxd4 {[%emt 0:07:53]} g5 {[%emt 0:02:21]} 24. Rf1 {[%emt 0:12:09]} Qg7 {[%emt 0:00:27]} 25. Re1 {[%emt 0:04:22]} Rf4 {[%emt 0:00:24]} 26. Bd1 {[%emt 0:00:57]} Qg6 {[%emt 0:02:21]} 27. h4 {[%emt 0:03:56]} Rd7 {[%emt 0:00:43]} 28. Bg4 {[%emt 0:00:28]} Bxg4 {[%emt 0:01:41]} 29. Nxg4 {[%emt 0:00:06]} Rg7 {[%emt 0:00:18]} 30. h5 {[%emt 0:01:54]} Qe6 {[%emt 0:00:46]} 31. Ne5 {[%emt 0:00:16]} Qf5 {[%emt 0:00:04]} 32. Ng6 {[%emt 0:01:53]} Rg4 {[%emt 0:01:43]} 33. Qh3 {[%emt 0:02:34]} e3 {[%emt 0:00:29]} 34. Rf1 {[%emt 0:04:03]} Qe4 {[%emt 0:00:03]} 35. Rf8+ {[%emt 0:00:10]} 1-0

[Event "EYTCC Open U18 2022"]
[Site "Thessaloniki"]
[Date "2022.07.15"]
[Round "4.4"]
[White "Ljepic, Andrej"]
[Black "Kochavi, Ori"]
[Result "0-1"]
[ECO "B15"]
[WhiteElo "2234"]
[BlackElo "2364"]
[Annotator "ChessBase"]
[PlyCount "80"]
[EventDate "2022.07.12"]
[EventType "team-tourn"]
[EventCountry "GRE"]
[SourceTitle "playchess.com"]
[Source "ChessBase"]
[SourceQuality "1"]
[WhiteTeam "Serbia"]
[BlackTeam "Israel"]
[WhiteTeamCountry "SRB"]
[BlackTeamCountry "ISR"]
[TimeControl "40/5400+30:1800+30"]

1. e4 {[%emt 0:00:02]} c6 {[%emt 0:00:48]} 2. d4 {[%emt 0:00:08]} d5 {[%emt 0:00:01]} 3. Nc3 {[%emt 0:00:15]} dxe4 {[%emt 0:00:02]} 4. Nxe4 {[%emt 0:00:12]} Nf6 {[%emt 0:00:02]} 5. Nxf6+ {[%emt 0:00:12]} exf6 {[%emt 0:00:03]} 6. c3 {[%emt 0:00:25]} Bd6 {[%emt 0:00:16]} 7. Bd3 {[%emt 0:00:16]} O-O {[%emt 0:00:04]} 8. Qc2 {[%emt 0:00:32]} Re8+ {[%emt 0:00:03]} 9. Ne2 {[%emt 0:00:13]} h5 {[%emt 0:00:02]} 10. O-O {[%emt 0:00:21]} h4 {[%emt 0:00:04]} 11. h3 {[%emt 0:00:09]} Nd7 {[%emt 0:00:04]} 12. Be3 {[%emt 0:03:33]} Nf8 {[%emt 0:00:04]} 13. Rae1 {[%emt 0:03:46]} Bd7 {[%emt 0:08:07]} 14. Qd2 {[%emt 0:05:48]} Rc8 {[%emt 0:04:03]} 15. f4 {[%emt 0:10:35]} f5 {[%emt 0:00:04]} 16. c4 {[%emt 0:05:43]} Bb8 {[%emt 0:09:55]} 17. Nc3 {[%emt 0:07:59]} a6 {[%emt 0:01:37]} 18. d5 {[%emt 0:15:25]} c5 {[%emt 0:00:30]} 19. a3 {[%emt 0:03:18]} Bd6 {[%emt 0:05:06]} 20. Kh1 {[%emt 0:07:00]} Qf6 {[%emt 0:07:46]} 21. Ne2 {[%emt 0:04:14]} b5 {[%emt 0:02:06]} 22. b3 {[%emt 0:01:38]} Ng6 {[%emt 0:02:58]} 23. Qc1 {[%emt 0:05:47]} Rb8 {[%emt 0:15:05]} 24. Bd2 {[%emt 0:05:54]} bxc4 {[%emt 0:00:07]} 25. Bc3 {[%emt 0:00:51]} cxd3 {[%emt 0:02:38]} 26. Bxf6 {[%emt 0:00:33]} dxe2 {[%emt 0:00:04]} 27. Rf2 {[%emt 0:01:38]} gxf6 {[%emt 0:00:03]} 28. Rfxe2 {[%emt 0:00:31]} Rxe2 {[%emt 0:00:14]} 29. Rxe2 {[%emt 0:00:01]} Nxf4 {[%emt 0:00:10]} 30. Re3 {[%emt 0:03:09]} Nxd5 {[%emt 0:04:23]} 31. Rd3 {[%emt 0:00:27]} Be6 {[%emt 0:00:16]} 32. Qh6 {[%emt 0:12:06]} Bg3 {[%emt 0:03:46]} 33. Qc1 {[%emt 0:03:21]} Nf4 {[%emt 0:03:29]} 34. Rxg3+ {[%emt 0:00:48]} hxg3 {[%emt 0:00:05]} 35. Qxf4 {[%emt 0:00:27]} Rxb3 {[%emt 0:00:07]} 36. Qc1 {[%emt 0:00:17]} Bd5 {[%emt 0:00:53]} 37. Qd1 {[%emt 0:00:50]} Rb2 {[%emt 0:02:17]} 38. Qc1 {[%emt 0:00:34]} Rxg2 {[%emt 0:00:14]} 39. Qxc5 {[%emt 0:00:20]} Rh2+ {[%emt 0:00:04]} 40. Kg1 {[%emt 0:00:00]} Rh1# {[%emt 0:00:00]} 0-1

[Event "EYTCC Open U18 2022"]
[Site "Thessaloniki"]
[Date "2022.07.15"]
[Round "4.5"]
[White "Svane, Frederik"]
[Black "Baum, Jonasz"]
[Result "1-0"]
[ECO "B23"]
[WhiteElo "2521"]
[BlackElo "2410"]
[Annotator "ChessBase"]
[PlyCount "103"]
[EventDate "2022.07.12"]
[EventType "team-tourn"]
[EventCountry "GRE"]
[SourceTitle "playchess.com"]
[Source "ChessBase"]
[SourceQuality "1"]
[WhiteTeam "Germany"]
[BlackTeam "Poland"]
[WhiteTeamCountry "GER"]
[BlackTeamCountry "POL"]
[TimeControl "40/5400+30:1800+30"]

1. e4 {[%emt 0:00:19]} c5 {[%emt 0:00:07]} 2. Nc3 {[%emt 0:00:25]} d6 {[%emt 0:00:10]} 3. Nge2 {[%emt 0:02:28]} Nf6 {[%emt 0:00:44]} 4. g3 {[%emt 0:00:30]} Nc6 {[%emt 0:01:58]} 5. Bg2 {[%emt 0:00:18]} g6 {[%emt 0:00:34]} 6. d3 {[%emt 0:01:19]} Bg7 {[%emt 0:00:35]} 7. O-O {[%emt 0:00:20]} O-O {[%emt 0:01:55]} 8. h3 {[%emt 0:00:05]} Rb8 {[%emt 0:03:12]} 9. f4 {[%emt 0:00:21]} Bd7 {[%emt 0:02:35]} 10. Be3 {[%emt 0:00:07]} b5 {[%emt 0:01:12]} 11. a3 {[%emt 0:00:11]} a5 {[%emt 0:02:49]} 12. a4 b4 {[%emt 0:04:36]} 13. Nb5 {[%emt 0:00:14]} Ne8 14. Rb1 Nc7 {[%emt 0:07:58]} 15. c4 {[%emt 0:00:16]} Ne6 {[%emt 0:03:48]} 16. f5 {[%emt 0:08:51]} Ned4 {[%emt 0:00:25]} 17. Nexd4 {[%emt 0:09:08]} Nxd4 {[%emt 0:00:51]} 18. Nxd4 {[%emt 0:01:21]} Bxd4 {[%emt 0:07:59]} 19. Bxd4 {[%emt 0:01:33]} cxd4 {[%emt 0:00:02]} 20. Qd2 {[%emt 0:02:58]} Kg7 {[%emt 0:03:54]} 21. b3 {[%emt 0:08:27]} f6 {[%emt 0:03:09]} 22. h4 {[%emt 0:01:05]} Qb6 {[%emt 0:05:07]} 23. g4 {[%emt 0:02:31]} Qc5 {[%emt 0:04:25]} 24. Rf3 {[%emt 0:01:07]} Qe5 {[%emt 0:14:09]} 25. Rbf1 {[%emt 0:06:57]} h6 {[%emt 0:11:18]} 26. g5 {[%emt 0:31:15]} hxg5 {[%emt 0:00:18]} 27. hxg5 {[%emt 0:01:10]} Rh8 28. R1f2 gxf5 {[%emt 0:08:15]} 29. exf5 {[%emt 0:00:35]} Qh2+ 30. Kf1 {[%emt 0:00:04]} Bc6 {[%emt 0:02:21]} 31. Rf4 {[%emt 0:04:17]} Bxg2+ {[%emt 0:00:43]} 32. Rxg2 {[%emt 0:00:05]} Qh1+ {[%emt 0:00:06]} 33. Rg1 {[%emt 0:04:30]} Qh3+ {[%emt 0:00:04]} 34. Kf2 {[%emt 0:00:53]} fxg5 {[%emt 0:04:54]} 35. Re4 {[%emt 0:04:42]} Qxf5+ {[%emt 0:03:55]} 36. Ke1 {[%emt 0:00:04]} Qf6 {[%emt 0:00:47]} 37. Rxg5+ {[%emt 0:01:44]} Kf7 {[%emt 0:00:11]} 38. Rf4 {[%emt 0:00:23]} Rh1+ {[%emt 0:02:44]} 39. Kf2 {[%emt 0:00:05]} Re8 {[%emt 0:01:16]} 40. Rg2 {[%emt 0:00:00]} Rb1 41. Rxf6+ {[%emt 0:02:58]} exf6 {[%emt 0:00:28]} 42. Qf4 {[%emt 0:00:21]} Rxb3 {[%emt 0:05:51]} 43. Qxd4 {[%emt 0:00:28]} Re5 44. Qa7+ {[%emt 0:02:31]} Ke6 {[%emt 0:01:21]} 45. Rg7 {[%emt 0:00:30]} Rb2+ {[%emt 0:00:39]} 46. Kf3 {[%emt 0:00:35]} Rf5+ 47. Ke3 {[%emt 0:00:12]} Re5+ {[%emt 0:00:47]} 48. Kd4 {[%emt 0:00:07]} Kf5 {[%emt 0:00:04]} 49. Qd7+ {[%emt 0:00:23]} Re6 {[%emt 0:00:04]} 50. Qf7 {[%emt 0:00:05]} Rh2 {[%emt 0:00:23]} 51. Qg6+ {[%emt 0:00:05]} Kf4 {[%emt 0:00:04]} 52. Qg4# {[%emt 0:00:05]} 1-0

[Event "EYTCC Open U18 2022"]
[Site "Thessaloniki"]
[Date "2022.07.15"]
[Round "4.6"]
[White "Czopor, Maciej"]
[Black "Koellner, Ruben Gideon"]
[Result "1-0"]
[ECO "C41"]
[WhiteElo "2415"]
[BlackElo "2422"]
[Annotator "ChessBase"]
[PlyCount "73"]
[EventDate "2022.07.12"]
[EventType "team-tourn"]
[EventCountry "GRE"]
[SourceTitle "playchess.com"]
[Source "ChessBase"]
[SourceQuality "1"]
[WhiteTeam "Poland"]
[BlackTeam "Germany"]
[WhiteTeamCountry "POL"]
[BlackTeamCountry "GER"]
[TimeControl "40/5400+30:1800+30"]

1. e4 {[%emt 0:00:05]} d6 {[%emt 0:00:04]} 2. d4 {[%emt 0:00:17]} Nf6 {[%emt 0:00:05]} 3. Nc3 {[%emt 0:00:02]} e5 {[%emt 0:00:05]} 4. Nf3 {[%emt 0:00:07]} Nbd7 {[%emt 0:00:05]} 5. Rg1 {[%emt 0:00:06]} h5 {[%emt 0:00:05]} 6. Bg5 {[%emt 0:10:31]} Be7 {[%emt 0:00:09]} 7. Qd2 {[%emt 0:06:26]} c6 {[%emt 0:00:06]} 8. O-O-O {[%emt 0:08:31]} b5 {[%emt 0:00:26]} 9. Bxf6 {[%emt 0:03:51]} Bxf6 {[%emt 0:13:12]} 10. d5 {[%emt 0:00:14]} b4 {[%emt 0:10:19]} 11. dxc6 {[%emt 0:00:53]} bxc3 {[%emt 0:00:06]} 12. cxd7+ {[%emt 0:00:24]} Bxd7 {[%emt 0:00:06]} 13. Qxc3 {[%emt 0:03:11]} Qb6 {[%emt 0:00:11]} 14. Bc4 {[%emt 0:04:33]} Ke7 {[%emt 0:01:57]} 15. Qe3 {[%emt 0:24:10]} Qxe3+ {[%emt 0:09:09]} 16. fxe3 {[%emt 0:00:01]} Rac8 {[%emt 0:01:16]} 17. Bd5 {[%emt 0:01:42]} h4 {[%emt 0:03:20]} 18. Rd3 {[%emt 0:04:35]} Bg4 {[%emt 0:03:11]} 19. Rf1 {[%emt 0:02:52]} Rc7 {[%emt 0:01:48]} 20. Ra3 {[%emt 0:00:38]} Rhc8 {[%emt 0:11:46]} 21. c3 {[%emt 0:00:27]} h3 {[%emt 0:02:10]} 22. g3 {[%emt 0:00:50]} g6 {[%emt 0:00:47]} 23. Ne1 {[%emt 0:06:19]} Bg5 {[%emt 0:07:26]} 24. Kd2 {[%emt 0:00:09]} f5 {[%emt 0:00:23]} 25. Nd3 {[%emt 0:02:41]} Rf8 {[%emt 0:03:00]} 26. Ra6 {[%emt 0:03:36]} Bh6 {[%emt 0:05:52]} 27. exf5 {[%emt 0:05:24]} gxf5 {[%emt 0:02:04]} 28. Nxe5 {[%emt 0:02:10]} dxe5 {[%emt 0:04:04]} 29. Re6+ {[%emt 0:01:02]} Kd7 {[%emt 0:03:19]} 30. Rxh6 {[%emt 0:00:04]} Rb8 {[%emt 0:00:07]} 31. b3 {[%emt 0:01:09]} Rb6 {[%emt 0:00:19]} 32. Rh7+ {[%emt 0:04:15]} Kd6 {[%emt 0:00:09]} 33. Rxc7 {[%emt 0:00:04]} Kxc7 {[%emt 0:00:11]} 34. e4 {[%emt 0:01:12]} Rd6 {[%emt 0:01:14]} 35. Ke3 {[%emt 0:00:52]} Kb6 {[%emt 0:00:24]} 36. c4 {[%emt 0:00:23]} fxe4 {[%emt 0:00:15]} 37. b4 {[%emt 0:00:51]} 1-0

[Event "EYTCC Open U18 2022"]
[Site "Thessaloniki"]
[Date "2022.07.15"]
[Round "4.7"]
[White "Koelle, Tobias"]
[Black "Klimkowski, Jan"]
[Result "1/2-1/2"]
[ECO "E16"]
[WhiteElo "2436"]
[BlackElo "2398"]
[Annotator "ChessBase"]
[PlyCount "120"]
[EventDate "2022.07.12"]
[EventType "team-tourn"]
[EventCountry "GRE"]
[SourceTitle "playchess.com"]
[Source "ChessBase"]
[SourceQuality "1"]
[WhiteTeam "Germany"]
[BlackTeam "Poland"]
[WhiteTeamCountry "GER"]
[BlackTeamCountry "POL"]
[TimeControl "40/5400+30:1800+30"]

1. d4 {[%emt 0:00:03]} Nf6 {[%emt 0:00:09]} 2. c4 {[%emt 0:00:07]} e6 {[%emt 0:00:05]} 3. Nf3 {[%emt 0:00:03]} Bb4+ {[%emt 0:00:08]} 4. Bd2 {[%emt 0:00:05]} Qe7 {[%emt 0:00:12]} 5. g3 {[%emt 0:00:16]} Bxd2+ {[%emt 0:00:11]} 6. Qxd2 {[%emt 0:00:17]} Nc6 {[%emt 0:00:08]} 7. a3 {[%emt 0:00:13]} O-O {[%emt 0:02:24]} 8. Bg2 {[%emt 0:00:14]} d6 {[%emt 0:03:15]} 9. O-O {[%emt 0:02:13]} e5 {[%emt 0:01:58]} 10. Nc3 {[%emt 0:02:00]} e4 {[%emt 0:18:45]} 11. Ng5 {[%emt 0:07:54]} Bf5 {[%emt 0:00:26]} 12. Nd5 {[%emt 0:09:58]} Nxd5 {[%emt 0:00:17]} 13. cxd5 {[%emt 0:00:05]} Nxd4 {[%emt 0:01:16]} 14. Qxd4 {[%emt 0:00:57]} Qxg5 {[%emt 0:00:07]} 15. Bxe4 {[%emt 0:00:40]} Rfe8 {[%emt 0:10:00]} 16. Bf3 {[%emt 0:04:21]} Qd8 {[%emt 0:04:06]} 17. Rfc1 {[%emt 0:02:29]} Re7 {[%emt 0:01:01]} 18. Rc3 {[%emt 0:01:46]} a5 {[%emt 0:01:34]} 19. Rac1 {[%emt 0:01:04]} b6 {[%emt 0:04:02]} 20. Qf4 {[%emt 0:06:46]} Bg6 {[%emt 0:04:50]} 21. h4 {[%emt 0:02:37]} h6 {[%emt 0:00:16]} 22. Rc6 {[%emt 0:04:13]} Rb8 {[%emt 0:03:03]} 23. R1c3 {[%emt 0:09:16]} Bh7 {[%emt 0:01:39]} 24. Qc1 {[%emt 0:09:28]} Rb7 {[%emt 0:00:13]} 25. R6c4 {[%emt 0:11:30]} Bf5 {[%emt 0:03:22]} 26. Kg2 {[%emt 0:01:42]} Bg6 {[%emt 0:01:42]} 27. Re3 {[%emt 0:03:55]} Bf5 {[%emt 0:03:05]} 28. Rf4 {[%emt 0:00:50]} Bg6 {[%emt 0:00:48]} 29. Qc3 {[%emt 0:00:37]} Qe8 {[%emt 0:05:27]} 30. Rxe7 {[%emt 0:01:59]} Qxe7 {[%emt 0:00:05]} 31. h5 {[%emt 0:00:40]} Bh7 {[%emt 0:01:01]} 32. Rg4 {[%emt 0:01:10]} f6 {[%emt 0:01:13]} 33. Qc6 {[%emt 0:01:35]} Ra7 {[%emt 0:01:12]} 34. Rc4 {[%emt 0:01:17]} Bf5 {[%emt 0:01:12]} 35. Rf4 {[%emt 0:01:50]} Bd7 {[%emt 0:03:43]} 36. Qc2 {[%emt 0:02:19]} Ra8 {[%emt 0:03:27]} 37. Rc4 {[%emt 0:00:34]} Rc8 {[%emt 0:00:47]} 38. Kg1 {[%emt 0:01:31]} Qd8 {[%emt 0:01:37]} 39. Be4 {[%emt 0:02:38]} Kh8 {[%emt 0:05:01]} 40. Rc3 {[%emt 0:00:00]} Be8 {[%emt 0:00:00]} 41. Bf5 {[%emt 0:05:13]} Bd7 {[%emt 0:08:27]} 42. Bg6 {[%emt 0:01:00]} Be8 {[%emt 0:01:15]} 43. Qe4 {[%emt 0:04:22]} Kg8 {[%emt 0:05:25]} 44. Bf5 {[%emt 0:17:07]} Bd7 {[%emt 0:02:52]} 45. Re3 {[%emt 0:02:32]} Bxf5 {[%emt 0:02:41]} 46. Qxf5 {[%emt 0:00:02]} Rb8 {[%emt 0:01:08]} 47. Kg2 {[%emt 0:01:15]} Qc8 {[%emt 0:01:37]} 48. Re6 {[%emt 0:00:56]} b5 {[%emt 0:04:05]} 49. Qg6 {[%emt 0:00:46]} Kf8 {[%emt 0:00:54]} 50. Qd3 {[%emt 0:05:46]} Qd7 {[%emt 0:01:06]} 51. Re4 {[%emt 0:01:24]} Re8 {[%emt 0:00:55]} 52. Rh4 {[%emt 0:03:44]} Re5 {[%emt 0:00:59]} 53. Rh1 {[%emt 0:00:25]} c6 {[%emt 0:02:13]} 54. dxc6 {[%emt 0:00:07]} Qxc6+ {[%emt 0:00:04]} 55. Qf3 {[%emt 0:00:49]} Qxf3+ {[%emt 0:02:55]} 56. Kxf3 {[%emt 0:00:01]} Rc5 {[%emt 0:00:30]} 57. e3 {[%emt 0:01:26]} Rc2 {[%emt 0:00:47]} 58. b4 {[%emt 0:00:39]} axb4 {[%emt 0:03:07]} 59. axb4 {[%emt 0:00:01]} Rc4 {[%emt 0:00:08]} 60. Ra1 {[%emt 0:00:36]} f5 {[%emt 0:02:22]} 1/2-1/2